Cogmind - Beta 15 @@@ ROGUE MODE // 2025.05.12 @ 12:25:05 Player: Bardic Entropy Result: Destroyed by 4R-ATF(R) with Subdweller Laser Performance ------------- Evolutions (0) 0 Regions Visited (3) 600 Robots Destroyed (17) 85 Value Destroyed (275) 275 Prototype IDs (0) 0 Alien Tech Used (0) 0 Bonus (7) 7 TOTAL SCORE: 967 Bonus ------- Follower Combat Kills 7 Cogmind --------- Core Integrity 0/250 Matter 131/300 Energy 96/100 System Corruption 0% Temperature Cool (8) Movement Walking (200) Ox1 Location -10/Subcaves Parts ------- > --- POWER (1) -------- (None) > --- PROPULSION (2) --- Titanium Leg > --- UTILITY (2) ------ Medium Storage Unit Hardened Medium Armor Plating > --- WEAPON (2) ------- Flak Cannon > --- INVENTORY (10) --- Improved Aluminum Leg Improved Aluminum Leg Improved Aluminum Leg High-capacity Storage Unit High-capacity Matter Pod (20) Hacking Suite System Shield Heavy Assault Rifle Heavy Assault Rifle Peak State ------------ > --- POWER ------------ Light Ion Engine > --- PROPULSION ------- Improved Aluminum Leg Titanium Leg > --- UTILITY ---------- Medium Storage Unit Improved Sensor Array > --- WEAPON ----------- Heavy Assault Rifle Flak Cannon > --- INVENTORY -------- Improved Aluminum Leg Improved Aluminum Leg Improved Aluminum Leg High-capacity Storage Unit High-capacity Matter Pod Hardened Medium Armor Plating Hacking Suite System Shield Heavy Assault Rifle Heavy Assault Rifle [Rating: 17] Favorites ----------- Power Light Ion Engine Engine Light Ion Engine Propulsion Improved Aluminum Leg Leg Improved Aluminum Leg Wheel Compact Wheel Utility Medium Storage Unit Device Improved Sensor Array Storage Medium Storage Unit Processor Visual Processing Unit Protection Hardened Medium Armor Plating Weapon Heavy Assault Rifle Energy Gun EM Pulse Gun Ballistic Gun Heavy Assault Rifle Ballistic Cannon Flak Cannon Special Weapon Mining Laser Build | -11 -10 -10 -10 ------- Run | Yrd Mat Min Sub Slots Evolved . | . . . . Power . | . . . . Propulsion . | . . . . Utility . | . . . . Weapon . | . . . . Parts Attached 26 | 6 13 6 1 Power 3 | 1 2 . . Engine 3 | 1 2 . . Core . | . . . . Reactor . | . . . . Propulsion 6 | 2 3 1 . Treads . | . . . . Leg 3 | . 2 1 . Wheel 3 | 2 1 . . Hover . | . . . . Flight . | . . . . Utility 8 | 1 4 3 . Device 3 | . 1 2 . Storage 2 | 1 1 . . Processor 2 | . 2 . . Hackware . | . . . . Protection 1 | . . 1 . Artifact . | . . . . Weapon 9 | 2 4 2 1 Energy Gun 1 | . 1 . . Energy Cannon . | . . . . Ballistic Gun 5 | 2 2 1 . Ballistic Cannon 1 | . . . 1 Launcher . | . . . . Special Weapon 2 | . 1 1 . Impact Weapon . | . . . . Slashing Weapon . | . . . . Piercing Weapon . | . . . . Special Melee Weapon . | . . . . Unidentified Prototypes . | . . . . Parts Lost 7 | . 3 . 4 Power 1 | . . . 1 Propulsion 2 | . 1 . 1 Utility 1 | . . . 1 Weapon 3 | . 2 . 1 Highest Loss Streak 3 | . 3 . 2 To Critical Strikes . | . . . . Average Backups 8 | . 6 9 9 Power . | . . . . Propulsion 2 | . 1 2 3 Utility 3 | . 2 4 4 Weapon 2 | . 2 2 2 Tool/Special . | . . . . Unused Backups 14 | . 6 2 6 Power 2 | . 2 . . Propulsion 2 | . . . 2 Utility 6 | . 1 1 4 Weapon 4 | . 3 1 . Tool/Special . | . . . . Average Slot Usage (%) 97 | . 95 100 97 Engine 13 | . 14 14 12 Leg 25 | . 19 28 27 Wheel 2 | . 8 . . Device 8 | . 6 13 4 Storage 14 | . 14 14 14 Processor 1 | . 4 . . Protection 3 | . . . 9 Ballistic Gun 23 | . 24 27 18 Ballistic Cannon 3 | . . . 8 Peak Build Rating 17 | 6 12 16 17 Average Rating 13 | 5 9 14 15 On Entrance 8 | . 6 12 16 Naked Turns . | . . . . Heaviest Build 30 | 11 20 27 30 Greatest Support 32 | 32 32 30 30 Greatest Overweight (x) 1 | . . . 1 Average Overweight (x) . | . . . . Largest Inventory Capacity 10 | 8 10 10 10 Average Capacity 9 | 7 9 10 10 Most Carried 10 | 1 10 10 10 Average Carried 8 | . 6 9 9 Final Capacity 10 | 8 10 10 10 Final Carried 10 | 1 10 10 9 Class Distribution -------------------- 100% | Mutant Dominant Class ---------------- Mutant | -10/Materials Mutant | -10/Mines Mutant | -10/Subcaves Resources | -11 -10 -10 -10 ----------- Run | Yrd Mat Min Sub Matter Collected 625 | 211 251 36 127 Remotely . | . . . . Salvage Created 428 | 10 310 . 108 Parts 34 | 3 26 . 5 Haulers Intercepted 1 | . 1 . . Recyclers Shooed 1 | . 1 . . Parts Field Recycled . | . . . . Retrieved Matter . | . . . . Parts Self-Destructed . | . . . . Prevented . | . . . . Kills | -11 -10 -10 -10 ------- Run | Yrd Mat Min Sub Combat Hostiles Destroyed 9 | . 6 . 3 Guns 5 | . 3 . 2 Cannons 1 | . . . 1 AOE 3 | . 3 . . Classes Destroyed 8 | 1 6 . 1 Builder 1 | . 1 . . Tunneler 2 | 1 1 . . Hauler 1 | . 1 . . Recycler 1 | . 1 . . Operator 1 | . 1 . . Watcher 2 | . 2 . . Swarmer 6 | . 6 . . Subdweller 3 | . . . 3 Best Kill Streak 4 | 1 4 . 2 Combat Bots Only 3 | . 3 . 2 Max Kills in Single Turn 3 | 1 3 . 1 Gunslinging . | . . . . Exploded 2 | . 2 . . Melee . | . . . . Uniques/NPCs Destroyed . | . . . . Combat | -11 -10 -10 -10 -------- Run | Yrd Mat Min Sub Hostile Shots Fired 71 | . 20 . 51 Missed 16 | . 4 . 12 Hits 55 | . 16 . 39 Projectile 55 | . 16 . 39 Damage Taken 1063 | . 241 . 822 Core 259 | . 72 . 187 Absorbed by Shields . | . . . . Regen/Repaired (Parts) 2 | . 2 . . Core Remaining (%) 100 | 100 . . . Volleys Fired 55 | 3 25 1 26 Largest 2 | 2 2 1 2 Hottest 100 | 40 100 100 60 Shots Fired 101 | 6 42 1 52 Gun 77 | 6 41 . 30 Cannon 22 | . . . 22 Launcher . | . . . . Special 2 | . 1 1 . Kinetic 87 | 6 29 . 52 Thermal 2 | . 1 1 . Explosive . | . . . . Electromagnetic 12 | . 12 . . Robot Hit Streak 11 | 2 5 . 11 Robot Miss Streak 3 | 2 2 . 3 Penetration Max . | . . . . Secondary Targets . | . . . . Shots Hit Robots 65 | 3 24 . 38 Core Hits 26 | 1 15 . 10 Critical Kills 1 | . 1 . . Critical Parts Destroyed 1 | . 1 . . Critical Strikes 2 | . 2 . . Destroy 2 | . 2 . . Melee Attacks . | . . . . Impact . | . . . . Slashing . | . . . . Piercing . | . . . . Sneak Attacks . | . . . . Combat Hostiles . | . . . . Follow-up Attacks . | . . . . Damage Inflicted 810 | 28 575 . 207 Guns 450 | 28 288 . 134 Cannons 73 | . . . 73 Explosions 287 | . 287 . . Melee . | . . . . Ramming . | . . . . Kinetic 410 | 28 175 . 207 Thermal 112 | . 112 . . Explosive 175 | . 175 . . Electromagnetic 113 | . 113 . . Impact . | . . . . Slashing . | . . . . Piercing . | . . . . Highest Corruption . | . . . . Average Corruption . | . . . . Corruption Purged . | . . . . Corruption Blocked . | . . . . Overload Shots . | . . . . Overflow Damage 2 | . 2 . . Projectiles . | . . . . Explosions 2 | . 2 . . Melee . | . . . . Knockbacks 4 | . . . 4 Impact . | . . . . Kinetic 4 | . . . 4 Secondary . | . . . . Self-Inflicted Damage 114 | . 114 . . Shots 2 | . 2 . . Rammed . | . . . . Targets Rammed . | . . . . Kicked . | . . . . Crushed . | . . . . Highest Temperature 20 | . 20 20 . Average Temperature 15 | . 16 10 . Received Heat Transfer 204 | . . . 204 Siege Activations . | . . . . Martial Activations . | . . . . Shielding Activations . | . . . . Robots Disrupted . | . . . . Combat Hostiles . | . . . . Robots Corrupted . | . . . . Combat Hostiles . | . . . . Parts Fried . | . . . . Impact Corruptions . | . . . . Robots Melted . | . . . . Combat Hostiles . | . . . . Parts Melted . | . . . . Heat Transferred 50 | . 50 . . Parts Sabotaged . | . . . . Parts Stolen . | . . . . Parts Stripped . | . . . . Power Chain Reactions 2 | . 2 . . Alert | -11 -10 -10 -10 ------- Run | Yrd Mat Min Sub Maximum Alert Level . | . . . . Low Security (%) 100 | 100 100 100 . Level 1 . | . . . . Level 2 . | . . . . Level 3 . | . . . . Level 4 . | . . . . Level 5 . | . . . . High Security . | . . . . Max Security . | . . . . Peak Influence 162 | 5 162 3 . Initial . | . . . . Average 29 | . 72 . . Influence Increases 295 | 5 266 24 . Destroy 0b10 Robot/C 140 | . 120 20 . Destroy 0b10 Robot/NC 40 | 5 35 . . Destroy Leader 26 | . 26 . . Allied During Kill 3 | . . 3 . Successful Hack 5 | . 5 . . Disable Machine 30 | . 30 . . Destroy Structure 36 | . 35 1 . Lose Combat Pursuer 15 | . 15 . . Influence Decreases 295 | 5 264 23 3 Entered New Map 5 | . . 2 3 Time Decay 240 | 5 234 1 . Lost Part 30 | . 30 . . Lost Ally 20 | . . 20 . Squads Dispatched 1 | . 1 . . Investigation 1 | . 1 . . Extermination . | . . . . Reinforcement . | . . . . Assault . | . . . . Garrison . | . . . . Intercept . | . . . . Searches Triggered . | . . . . Construction Impeded . | . . . . Haulers Reinforced . | . . . . Active Scanning Responses . | . . . . Cargo Convoy Interrupts . | . . . . Stealth | -11 -10 -10 -10 --------- Run | Yrd Mat Min Sub Distress Signals 1 | . 1 . . Communications Jammed . | . . . . Distress Signals . | . . . . Times Spotted 17 | . 11 2 4 Peak Tracking Total 4 | . 4 3 2 Tactical Retreats 1 | . 1 . . Traps | -11 -10 -10 -10 ------- Run | Yrd Mat Min Sub Traps Triggered 1 | . 1 . . Indirectly . | . . . . Trap Hack Attempts . | . . . . Triggered . | . . . . Disarmed . | . . . . Reprogrammed . | . . . . Reused . | . . . . Traps Extracted . | . . . . Installed . | . . . . Triggered . | . . . . Machines | -11 -10 -10 -10 ---------- Run | Yrd Mat Min Sub Machines Disabled 2 | . 2 . . Max in Single Turn 2 | . 2 . . Machines Repaired . | . . . . Machines Dismantled . | . . . . Machines Sabotaged . | . . . . Overloaded Fab Kills . | . . . . Hacking | -11 -10 -10 -10 --------- Run | Yrd Mat Min Sub Machines Accessed 4 | . 3 1 . Terminals 2 | . 2 . . Fabricators . | . . . . Repair Stations 1 | . 1 . . Recycling Units . | . . . . Scanalyzers . | . . . . Garrison Access . | . . . . Total Hacks 10 | . 9 1 . Successful 6 | . 5 1 . Failed 4 | . 4 . . Catastrophic . | . . . . Database Lockouts . | . . . . Manual 6 | . 6 . . Terminals 6 | . 6 . . Fabricators . | . . . . Repair Stations 3 | . 3 . . Recycling Units . | . . . . Scanalyzers . | . . . . Garrison Access . | . . . . Terminal Hacks 2 | . 1 1 . Robot Analysis 1 | . 1 . . Open Door 1 | . . 1 . Fabricator Hacks . | . . . . Repair Station Hacks 2 | . 2 . . Scan Component 1 | . 1 . . Repair 1 | . 1 . . Recycling Unit Hacks . | . . . . Scanalyzer . | . . . . Garrison Access Hacks . | . . . . Unauthorized Hacks 2 | . 2 . . Terminals 2 | . 2 . . Botnet 2 | . 2 . . Fabricators . | . . . . Repair Stations . | . . . . Recycling Units . | . . . . Scanalyzers . | . . . . Garrison Access . | . . . . Data Cores Recovered 1 | . 1 . . Used . | . . . . Hacking Detections 2 | . 2 . . Full Trace Events . | . . . . Feedback Events . | . . . . Feedback Blocked . | . . . . Robot Schematics Acquired . | . . . . Robots Built . | . . . . Authchips . | . . . . Time . | . . . . Total Robot Build Rating . | . . . . Part Schematics Acquired . | . . . . Parts Built . | . . . . Authchips . | . . . . Time . | . . . . Total Part Build Rating . | . . . . Parts Repaired 1 | . 1 . . Time 53 | . 53 . . Parts Recycled . | . . . . Recycled Matter . | . . . . Retrieved Matter . | . . . . Retrieved Components . | . . . . Parts Scanalyzed . | . . . . Part Schematics Acquired . | . . . . Parts Damaged . | . . . . Bothacking | -11 -10 -10 -10 ------------ Run | Yrd Mat Min Sub Used RIF Installer . | . . . . Robots Hacked . | . . . . Non-combat . | . . . . Combat . | . . . . Robot Hacks Applied . | . . . . Relay Couplers Released . | . . . . Fabnet Peak Effective % . | . . . . Robots Rewired . | . . . . Allies Hacked . | . . . . Hacks Repelled . | . . . . Allies | -11 -10 -10 -10 -------- Run | Yrd Mat Min Sub Total Allies 3 | . . 3 . Largest Group 3 | . . 3 . Highest-Rated Group 40 | . . 40 . Highest-Rated Ally 16 | . . 16 . Total Orders . | . . . . Ally Attacks 7 | . . 7 . Total Damage 39 | . . 39 . Kills 1 | . . 1 . Allies Corrupted . | . . . . Allies Melted . | . . . . Intel | -11 -10 -10 -10 ------- Run | Yrd Mat Min Sub Active Infowar (turns) 1339 | . 382 704 253 Optics 128 | . 128 . . Sensors 754 | . . 501 253 Seismic 457 | . 254 203 . Robot Analysis Total 1 | . 1 . . Derelict Logs Recovered 2 | . . 2 . Drone Launches . | . . . . Drone Recoveries . | . . . . Exploration | -11 -10 -10 -10 ------------- Run | Yrd Mat Min Sub Turns Passed 2069 | 49 551 754 715 Spaces Moved 1401 | 33 349 549 470 Core 3 | 3 . . . Treads . | . . . . Legs 1250 | . 231 549 470 Wheels 148 | 30 118 . . Hover . | . . . . Flight . | . . . . Fastest Speed 50 | 50 90 120 125 Average Speed 121 | 95 112 123 127 Slowest Speed 200 | 100 120 125 200 Overloaded Moves . | . . . . Propulsion Burnouts . | . . . . Robots Hopped . | . . . . Potential Cave-ins . | . . . . Cave-ins Triggered . | . . . . Exploration Rate (%) 40 | 3 51 87 19 Regions Visited 3 Branch Regions 2 Pre-discovered Areas 1 | . . 1 . Known Exits Taken . | . . . . Unknown Exits Taken 3 | 1 1 1 . Scrap Searched 1 | . . 1 . Spaces Dug 2 | . 1 1 . Terrain Destroyed 35 | . 34 1 . Melee . | . . . . Projectile 2 | . 1 1 . AOE 33 | . 33 . . Terrain Rammed . | . . . . Walls Destroyed . | . . . . Machines Disabled . | . . . . Actions | -11 -10 -10 -10 --------- Run | Yrd Mat Min Sub Total 1664 | 42 466 620 536 Wait 137 | . 47 53 37 Move 1398 | 32 348 548 470 Hop . | . . . . Pick Up 24 | 1 18 5 . Fast Attach 11 | 6 5 . . Attach 3 | . 2 . 1 Detach . | . . . . Swap 17 | . 8 7 2 Drop 19 | . 13 6 . Fire 55 | 3 25 1 26 Melee . | . . . . Ram . | . . . . Kick . | . . . . Crush . | . . . . Escape Stasis . | . . . . Rewire . | . . . . Trap . | . . . . Miscellaneous . | . . . . Route ------- -11/Scrapyard -10/Materials -10/Mines (discovered 2 exits: [*Mat] / [*Sub]) -10/Subcaves History --------- Turn | Location | Event 20 | -11/Scrapyard | Discovered new exit (range 15) 50 | -11/Scrapyard | Entered Materials 225 | -10/Materials | Lost 3 parts (1n2w) 313 | -10/Materials | Build established: Mutant 345 | -10/Materials | Discovered new exit (range 8) 505 | -10/Materials | Repaired Corrupted Hacking Suite? 601 | -10/Materials | Entered Mines 731 | -10/Mines | Learned location of Zion (-7) 734 | -10/Mines | Discovered new exit (range 6) 768 | -10/Mines | Learned Materials stockpile data 798 | -10/Mines | Met a Derelict who couldn't figure out how to use a Trap Extractor 1327 | -10/Mines | Assisted by bots powering up and referring to "LRC-V3" 1348 | -10/Mines | Discovered new exit (range 5) 1355 | -10/Mines | Entered Subcaves 1356 | -10/Subcaves | Approached by a straggling Scientist 1628 | -10/Subcaves | Core integrity fell below 50% 2044 | -10/Subcaves | Core integrity fell below 20% 2070 | -10/Subcaves | Destroyed by 4R-ATF(R) with Subdweller Laser Last Messages --------------- 01428_ Subatomizers dissect the Wheel. 01466_ NH-2UO(R) destroyed. 01470_ Acquired 39 matter. 01473_ Subatomizers dissect the Wheel. 01478_ Acquired 19 matter. 01483_ Subatomizers dissect the Wheel. 01551_ Subatomizers dissect the Lgt. Ion Engine. 01622_ U0-37L(R) knocked back. 01625_ U0-37L(R) destroyed. 01625_ Imp. Sensor Array destroyed. 01628_ QD-1F5(R) knocked back. 01628_ QD-1F5(R) destroyed. 01633_ Acquired 34 matter. 01639_ Acquired 35 matter. 01854_ 8Y-KYL(u) tweaks Twisted Machinery. 01998_ 4R-ATF(R) knocked back. 02001_ Lgt. Ion Engine destroyed. 02037_ Imp. Aluminum Leg destroyed. 02056_ Hvy. Assault Rifle destroyed. [Achievement: Back For More] Map ----- +----------------------------------------------------+ | ??????????## ## ## #??????????????????????? | | ???????????# #??????????????????????? | | ??????????## ##??????????????????????? | | ??????????# ###???????????????????????? | | ??????????###### #?????#####?????###???????? | | ???????####???## ### * ####### ###?### #???????? | | ???????# ##??# ### & ### #??#####? | | ???????# ##?## # # ! "" ## " "#??# ## | | ???????# #??# ##??#" # | | ???????# #### ## " #### | | ???????# # # ## ###" " | | ??????## ####### * ####" ## """ | | ?????## ##### ########?# * ### " "" | | ?????# ###??????# ! &##?# " # ## | | ?????# ### #??????## ##### # ### | | ?????## #?# #???????# & [ " | | ??????# #?# ####???????# & " | | ??????# ### #####??????????## | | ??????# ### #???####????????# ### | | ?????## ### ##???# ######?### ## #?? | | ?????# # # "#### ### " ### ##? | | ?????# """ # ## #?## #? | | ?????# " #####?####??# #? | | ?????## ## ### " ##?????????## ##? | | ??????#### ###?###?# """ ##??####### ##?? | | ?????????######???????# @ """ ##?# ##?? | | ??????????????????????# R #?# #?? | | ??????????????????????#""""" ### #?? | | ????????????????????#" ##"""" # # ####?? | | ??????????????????? """""### ##????? | | ??????????????????? "##""##" #?????? | | ?????????????????? #?#""##" ### # #?????? | | ??????????????????????# ####### ##?########?????? | | ??????????????????????###?????####???????????????? | | ?????????????????????????????????????????????????? | | ?????????????????????????????????????????????????? | | ?????????????????????????????????????????????????? | | ?????????????????????????????????????????????????? | | ?????????????????????????????????????????????????? | | ?????????????????????????????????????????????????? | | ?????????????????????????????????????????????????? | | ?????????????????????????????????????????????????? | | ?????????????????????????????????????????????????? | | ?????????????????????????????????????????????????? | | ?????????????????????????????????????????????????? | | ?????????????????????????????????????????????????? | | ?????????????????????????????????????????????????? | | ?????????????????????????????????????????????????? | | | | | +----------------------------------------------------+ Best States ------------- Heat Dissipation 25 Energy Generation 10 Energy Capacity 125 Matter Stores 300 Matter Capacity 300 Sight Range 18 Robot Scan Range 15 Terrain Scan Density 10 Armor Coverage 225 Evasion (%) 55 Targeting Accuracy 5 Trap Extractor Capacity 6 Item Schematics ----------------- None Robot Schematics ------------------ None Fabricated ------------ Nothing Repaired ---------- Hacking Suite | 80% | -10/Materials | Corrupted Alien Tech Used ----------------- None Achievements -------------- Back For More Challenges ------------ None Game ------ Seed SubdwellerForceShotgun Manual? 0 Play Time 00:39:15 Cumulative 44.9 hours Start 2025.05.12 @ 11:46:02 End 2025.05.12 @ 12:25:05 Sessions 1 Manual Loads 0 Difficulty Rogue Special Mode None Game No. 50 Rogue 50 Adventurer 0 Explorer 0 Win Type - Total 0 Types 0/0/0/0/0/0/0/0/0/0 Lore% 14 Gallery% 20 Achievement% 21 Wizard Run 0 Options --------- Layout 0 ASCII 0 Keyboard 0 Movement Mouse Keybinds 0 Fullscreen 1 Font 16/TerminusTall Map View 75x55 Zoom Use 0% Tactical HUD 1 Map Filters NONE Filters NONE Steam 1 RUN: 0d137423-8021-4926-a61d-a0929fdc9436